Workbook

Sheet COMECE AQUI - LEIA ATENTAMENTE
B1: CALCULADORA BACKUP FOX ESS
B5: TERMOS DE USO E RECOMENDAÇÕES | M5: OS CÁLCULOS DESTE ARQUIVO NÃO CONSIDERAM:
B6: A Calculadora de Sistemas Híbridos da Fox ESS foi desenvolvida para auxiliar, de forma educativa, no pré-dimensionamento de soluções de backup de energia. Ressaltamos que os resultados gerados são apenas estimativas e não substituem um projeto técnico profissional. A Fox ESS não se responsabiliza por eventuais inadequações decorrentes do uso desta ferramenta. Para garantir que o sistema atenda plenamente às suas demandas, é indispensável a análise de um engenheiro ou especialista qualificado. Ter um sistema híbrido bem dimensionado é essencial para manter a continuidade de energia em aplicações residenciais, comerciais e industriais. A autonomia máxima considerada nesta ferramenta é de 24h. | M6: - Corrente de pico das cargas - Alimentação das cargas por outras fontes (Ex. Fotovoltaico/Solar, Gerador Diesel, Etc) - Coeficiente de simultaniedade das cargas - Eficiência de inversores e baterias - Correntes Máxima e Recomendada das baterias - Fator de Potência das cargas

Sheet INSTRUÇÕES DE USO
B1: CALCULADORA BACKUP FOX ESS
B5: INSTRUÇÕES
B6: Para o uso desta planilha, é extremamente importante que seja feito um levantamento prévio das cargas que serão alimentadas pelo sistema. 1 - A planilha é previamente preenchida com dados de exemplo que devem ser alterados de acordo com os dados do cliente. 2 - Na aba de Dimensionamento, selecione o Tipo de Rede do cliente dentre as opções disponíveis na linha 6. 3 - Preencha a Lista de Equipamentos nos campos editáveis (em roxo) da aba de DIMENSIONAMENTO, de acordo com o levantamento feito. Ajuste os nomes dos aparelhos, potências, quantidades e tempo de uso conforme necessário. NOTA1: As células que ficarem amarelas servem como um mero indicativo de potência mais alta (acima de 1kW) ou consumo alto. 4 - Indique a autonomia desejada de acordo com a necessidade do cliente dentre as opções disponíveis na coluna J. NOTA2: Por padrão a planilha considera DoD (Profundidade de Descarga) das baterias de 90%, sem perdas. 5 - Após todas as informações preenchidas, a planilha apresenta na aba RESULTADO, o modelo de inversor e a quantidade sugerida, assim como a quantidade de baterias recomendadas por inversor. Agora é só conferir o kit com o distribuidor de sua preferência e ser feliz com a Fox ESS! LEMBRE-SE: Essa calculadora foi desenvolvida para auxiliar no pré-dimensionamento de soluções de backup de energia e ressaltamos que os resultados gerados são apenas estimativas e não substituem um projeto técnico profissional. Para garantir que o sistema atenda plenamente às suas demandas, é indispensável a análise de um engenheiro ou especialista qualificado. A Fox-ESS não se responsabiliza por eventuais inadequações decorrentes do uso desta ferramenta.

Sheet DIMENSIONAMENTO
B1: CALCULADORA BACKUP FOX ESS
C5: Campos Editáveis
B6: Autonomia ( Horas) | C6: 4
B7: Tipo de rede do Cliente: | C7: Bifásica (127/220 V)
B8: Aparelho | C8: Potência Nominal [W] | D8: Tensão Nominal [V] | E8: Quantidade | F8: Tempo Ligado [h] | G8: Potência Total (W) | H8: Column1 | I8: Consumo diário (kWh) | K8: Inversores
A9: 1 | B9: Laptop | C9: 100 | D9: 220 | E9: 2 | F9: 24 | G9: =IFERROR(IF(Equipmentos[[#This Row],[Quantidade]]="","",Equipmentos[[#This Row],[Potência Nominal '[W']]]*Equipmentos[[#This Row],[Quantidade]]),"") -> 200 | I9: =IFERROR(IF(Equipmentos[[#This Row],[Quantidade]]="","",Equipmentos[[#This Row],[Potência Total (W)]]*Equipmentos[[#This Row],[Tempo Ligado '[h']]]/1000),"") -> 4.8 | K9: Quantidade | M9: Modelo
A10: 2 | B10: Modem / Wifi / Internet | C10: 20 | D10: 220 | E10: 1 | F10: 24 | G10: =IFERROR(IF(Equipmentos[[#This Row],[Quantidade]]="","",Equipmentos[[#This Row],[Potência Nominal '[W']]]*Equipmentos[[#This Row],[Quantidade]]),"") -> 20 | I10: =IFERROR(IF(Equipmentos[[#This Row],[Quantidade]]="","",Equipmentos[[#This Row],[Potência Total (W)]]*Equipmentos[[#This Row],[Tempo Ligado '[h']]]/1000),"") -> 0.48
A11: 3 | B11: Impressora | C11: 50 | D11: 220 | E11: 1 | F11: 0 | G11: =IFERROR(IF(Equipmentos[[#This Row],[Quantidade]]="","",Equipmentos[[#This Row],[Potência Nominal '[W']]]*Equipmentos[[#This Row],[Quantidade]]),"") -> 50 | I11: =IFERROR(IF(Equipmentos[[#This Row],[Quantidade]]="","",Equipmentos[[#This Row],[Potência Total (W)]]*Equipmentos[[#This Row],[Tempo Ligado '[h']]]/1000),"") -> 0 | K11: =_xlfn.IFS(C7=Dados!B8,Dados!G52,C7=Dados!B9,Dados!H52,C7=Dados!B10,Dados!J52,C7=Dados!B11,Dados!I52) -> 1 | M11: =_xlfn.IFS(C7=Dados!B8,Dados!G51,C7=Dados!B9,Dados!H51,C7=Dados!B10,Dados!J51,C7=Dados!B11,Dados!I51) -> H1-11.4-US
A12: 4 | B12: Luzes | C12: 15 | D12: 220 | E12: 10 | F12: 6 | G12: =IFERROR(IF(Equipmentos[[#This Row],[Quantidade]]="","",Equipmentos[[#This Row],[Potência Nominal '[W']]]*Equipmentos[[#This Row],[Quantidade]]),"") -> 150 | I12: =IFERROR(IF(Equipmentos[[#This Row],[Quantidade]]="","",Equipmentos[[#This Row],[Potência Total (W)]]*Equipmentos[[#This Row],[Tempo Ligado '[h']]]/1000),"") -> 0.9
A13: 5 | B13: TV | C13: 68 | D13: 220 | E13: 2 | F13: 4 | G13: =IFERROR(IF(Equipmentos[[#This Row],[Quantidade]]="","",Equipmentos[[#This Row],[Potência Nominal '[W']]]*Equipmentos[[#This Row],[Quantidade]]),"") -> 136 | I13: =IFERROR(IF(Equipmentos[[#This Row],[Quantidade]]="","",Equipmentos[[#This Row],[Potência Total (W)]]*Equipmentos[[#This Row],[Tempo Ligado '[h']]]/1000),"") -> 0.544 | K13: AVISOS:
A14: 6 | B14: MicroOndas | C14: 800 | D14: 220 | E14: 1 | F14: 0 | G14: =IFERROR(IF(Equipmentos[[#This Row],[Quantidade]]="","",Equipmentos[[#This Row],[Potência Nominal '[W']]]*Equipmentos[[#This Row],[Quantidade]]),"") -> 800 | I14: =IFERROR(IF(Equipmentos[[#This Row],[Quantidade]]="","",Equipmentos[[#This Row],[Potência Total (W)]]*Equipmentos[[#This Row],[Tempo Ligado '[h']]]/1000),"") -> 0 | K14: =IF(K25>4,"MÁXIMO DE 4 BATERIAS POR INVERSOR, AUMENTE MANUALMENTE A QUANTIDADE DE INVERSORES","") -> 
A15: 7 | B15: Air Fryer | C15: 1500 | D15: 220 | E15: 1 | F15: 0 | G15: =IFERROR(IF(Equipmentos[[#This Row],[Quantidade]]="","",Equipmentos[[#This Row],[Potência Nominal '[W']]]*Equipmentos[[#This Row],[Quantidade]]),"") -> 1500 | I15: =IFERROR(IF(Equipmentos[[#This Row],[Quantidade]]="","",Equipmentos[[#This Row],[Potência Total (W)]]*Equipmentos[[#This Row],[Tempo Ligado '[h']]]/1000),"") -> 0
A16: 8 | B16: Refrigerador | C16: 250 | D16: 220 | E16: 1 | F16: 24 | G16: =IFERROR(IF(Equipmentos[[#This Row],[Quantidade]]="","",Equipmentos[[#This Row],[Potência Nominal '[W']]]*Equipmentos[[#This Row],[Quantidade]]),"") -> 250 | I16: =IFERROR(IF(Equipmentos[[#This Row],[Quantidade]]="","",Equipmentos[[#This Row],[Potência Total (W)]]*Equipmentos[[#This Row],[Tempo Ligado '[h']]]/1000),"") -> 6 | K16: =_xlfn.IFS(K11>10,Dados!B36, K11<2,"",K11>4,Dados!C37,M11=Dados!D6,Dados!B38,M11=Dados!D7,Dados!B38,M11=Dados!D8,Dados!B38,M11=Dados!D9,Dados!B39,M11=Dados!D11,Dados!B39,M11=Dados!D10,Dados!B40,M11=Dados!D3,"",M11=Dados!D4,"",M11=Dados!D5,"") -> 
A17: 9 | B17: Freezer | C17: 150 | D17: 220 | E17: 1 | F17: 24 | G17: =IFERROR(IF(Equipmentos[[#This Row],[Quantidade]]="","",Equipmentos[[#This Row],[Potência Nominal '[W']]]*Equipmentos[[#This Row],[Quantidade]]),"") -> 150 | I17: =IFERROR(IF(Equipmentos[[#This Row],[Quantidade]]="","",Equipmentos[[#This Row],[Potência Total (W)]]*Equipmentos[[#This Row],[Tempo Ligado '[h']]]/1000),"") -> 3.6
A18: 10 | B18: Maquina Lavar | C18: 1500 | D18: 220 | E18: 1 | F18: 1 | G18: =IFERROR(IF(Equipmentos[[#This Row],[Quantidade]]="","",Equipmentos[[#This Row],[Potência Nominal '[W']]]*Equipmentos[[#This Row],[Quantidade]]),"") -> 1500 | I18: =IFERROR(IF(Equipmentos[[#This Row],[Quantidade]]="","",Equipmentos[[#This Row],[Potência Total (W)]]*Equipmentos[[#This Row],[Tempo Ligado '[h']]]/1000),"") -> 1.5 | K18: =IF( OR( AND(C7=Dados!B8, OR(COUNTIF(Equipmentos[Tensão Nominal '[V']],127)>0, COUNTIF(Equipmentos[Tensão Nominal '[V']],380)>0)), AND(C7=Dados!B9, COUNTIF(Equipmentos[Tensão Nominal '[V']],380)>0), AND(C7=Dados!B10, COUNTIF(Equipmentos[Tensão Nominal '[V']],127)>0), AND(C7=Dados!B11, COUNTIF(Equipmentos[Tensão Nominal '[V']],380)>0) ), Dados!B41, "" ) -> 
A19: 11 | B19: Chuveiro | C19: 7800 | D19: 220 | E19: 0 | F19: 0.5 | G19: =IFERROR(IF(Equipmentos[[#This Row],[Quantidade]]="","",Equipmentos[[#This Row],[Potência Nominal '[W']]]*Equipmentos[[#This Row],[Quantidade]]),"") -> 0 | I19: =IFERROR(IF(Equipmentos[[#This Row],[Quantidade]]="","",Equipmentos[[#This Row],[Potência Total (W)]]*Equipmentos[[#This Row],[Tempo Ligado '[h']]]/1000),"") -> 0
A20: 12 | B20: Ar Condicionado 9000 BTU | C20: 850 | D20: 220 | E20: 1 | F20: 2 | G20: =IFERROR(IF(Equipmentos[[#This Row],[Quantidade]]="","",Equipmentos[[#This Row],[Potência Nominal '[W']]]*Equipmentos[[#This Row],[Quantidade]]),"") -> 850 | I20: =IFERROR(IF(Equipmentos[[#This Row],[Quantidade]]="","",Equipmentos[[#This Row],[Potência Total (W)]]*Equipmentos[[#This Row],[Tempo Ligado '[h']]]/1000),"") -> 1.7
A21: 13 | B21: Ar Condicionado 12000 BTU | C21: 1000 | D21: 220 | E21: 1 | F21: 0 | G21: =IFERROR(IF(Equipmentos[[#This Row],[Quantidade]]="","",Equipmentos[[#This Row],[Potência Nominal '[W']]]*Equipmentos[[#This Row],[Quantidade]]),"") -> 1000 | I21: =IFERROR(IF(Equipmentos[[#This Row],[Quantidade]]="","",Equipmentos[[#This Row],[Potência Total (W)]]*Equipmentos[[#This Row],[Tempo Ligado '[h']]]/1000),"") -> 0 | K21: BATERIAS POR INVERSOR
A22: 14 | B22: Aspirador de Pó | C22: 1400 | D22: 220 | E22: 1 | F22: 0 | G22: =IFERROR(IF(Equipmentos[[#This Row],[Quantidade]]="","",Equipmentos[[#This Row],[Potência Nominal '[W']]]*Equipmentos[[#This Row],[Quantidade]]),"") -> 1400 | I22: =IFERROR(IF(Equipmentos[[#This Row],[Quantidade]]="","",Equipmentos[[#This Row],[Potência Total (W)]]*Equipmentos[[#This Row],[Tempo Ligado '[h']]]/1000),"") -> 0
A23: 15 | B23: Secador De cabelo | C23: 100 | D23: 220 | E23: 1 | F23: 0 | G23: =IFERROR(IF(Equipmentos[[#This Row],[Quantidade]]="","",Equipmentos[[#This Row],[Potência Nominal '[W']]]*Equipmentos[[#This Row],[Quantidade]]),"") -> 100 | I23: =IFERROR(IF(Equipmentos[[#This Row],[Quantidade]]="","",Equipmentos[[#This Row],[Potência Total (W)]]*Equipmentos[[#This Row],[Tempo Ligado '[h']]]/1000),"") -> 0 | K23: EP5 | M23: EP11
B24: Outros | C24: 0 | D24: 220 | E24: 0 | F24: 0 | G24: =IFERROR(IF(Equipmentos[[#This Row],[Quantidade]]="","",Equipmentos[[#This Row],[Potência Nominal '[W']]]*Equipmentos[[#This Row],[Quantidade]]),"") -> 0 | I24: =IFERROR(IF(Equipmentos[[#This Row],[Quantidade]]="","",Equipmentos[[#This Row],[Potência Total (W)]]*Equipmentos[[#This Row],[Tempo Ligado '[h']]]/1000),"") -> 0 | K24: 5KWH | M24: 10 KWH
K25: =IF(C6="","",MAX(Dados!P8:P11)) -> 1 | L25: OU | M25: =IF(C6="","",MAX(Dados!R8:R11)) -> 1
G26: =IF(E9="","",SUM(G9:G24)/1000) -> 8.11 | I26: =SUM(I9:I23) -> 19.52
G27: Potência Nominal Total [kW] | I27: Consumo diário Total [kWh]

Sheet RESULTADO
B1: CALCULADORA BACKUP
G6: =VLOOKUP(RESULTADO!B10,Products[#All],MATCH(Products[[#Headers],[Picture]],Products[#Headers],0),FALSE) -> 
B7: Lista de Produtos | J7: =IFERROR(_xlfn.IFS(DIMENSIONAMENTO!K16=Dados!B38,Dados!J20,DIMENSIONAMENTO!K16=Dados!B39,Dados!J18),"") -> 
B8: Modelo | C8: Quantidade | D8: AVISOS: | I8: =IF(J7="","","+") -> 
D9: =DIMENSIONAMENTO!K14 -> 
B10: =DIMENSIONAMENTO!M11 -> H1-11.4-US | C10: =DIMENSIONAMENTO!K11 -> 1.00
B11: =IF(DIMENSIONAMENTO!M25>1,Dados!D17,"") ->  | C11: =IFERROR(IF(B11="HV Junction-Box",ROUNDUP(DIMENSIONAMENTO!M25/4,0),"")*C10,"") ->  | D11: =DIMENSIONAMENTO!K16 -> 
B12: =IFERROR(_xlfn.IFS(DIMENSIONAMENTO!K16=Dados!B38,Dados!D20,DIMENSIONAMENTO!K16=Dados!B39,Dados!D18),"") ->  | C12: =IF(B12="","","1.00") ->  | H12: =IF(C11>=1,Dados!J17,"") -> 
B13: =DIMENSIONAMENTO!M23 -> EP11 | C13: =DIMENSIONAMENTO!M25*DIMENSIONAMENTO!K11 -> 1.00 | D13: =DIMENSIONAMENTO!K18 -> 
B14: OU
B15: =DIMENSIONAMENTO!K23 -> EP5 | C15: =DIMENSIONAMENTO!K25*DIMENSIONAMENTO!K11 -> 1.00 | G15: =Dados!J15 ->  | J15: =VLOOKUP(DIMENSIONAMENTO!M23,Products8[#All],7,) -> 
I17: OU
B18: Autonomia Desejada | C18: =DIMENSIONAMENTO!C6 -> 4 | D18: Autonomia Alcançada (plena carga) [h] | E18: =E19*C18/C19 -> 11.46
B19: Capacidade Necessária (kWh) | C19: =IF(DIMENSIONAMENTO!I26=0,"",DIMENSIONAMENTO!I26/24*DIMENSIONAMENTO!C6) -> 3.25 | D19: Capacidade Alcançada (kWh) | E19: =RESULTADO!C13*Dados!Q4 -> 9.32
B20: Potência Necessária (kW) | C20: =DIMENSIONAMENTO!G26 -> 8.11 | D20: Potência Alcançada (kW) | E20: =IFERROR(VLOOKUP(DIMENSIONAMENTO!M11,Products[#All],MATCH(Products[[#Headers],[Max Power EPS '[W']]],Products[#Headers],0),FALSE)*DIMENSIONAMENTO!K11/1000,"") -> 11.40

Sheet Dados (hidden)
B2: Tensão Nominal | D2: Fox ESS name | E2: Max Power EPS [W] | F2: Rated Voltage [V] | G2: Max EPS current [A] | H2: Peak Current (60s) [A] | I2: Peak Power (60s) [W] | J2: Picture | K2: Datasheet | L2: Manual | N2: Qtd | O2: EP5 | P2: Capacity EP5 | Q2: EP11 | R2: Capacity ep11
B3: 380 | D3: H1-5.0-E-G2 | E3: 5000 | F3: 220 | G3: 22.7 | K3: https://br.fox-ess.com/download/upfiles/BR-H1-G2-wl-Datasheet-V1.0-20250828.pdf | L3: https://br.fox-ess.com/download/upfiles/PT-H1-G2-WL-Manual-V1.0.0-20250814.pdf | O3: 5.18 | Q3: 10.36
B4: 220 | D4: KH7.5 | E4: 7500 | F4: 220 | G4: 31.8 | H4: 45.45 | I4: 10000 | K4: https://br.fox-ess.com/download/upfiles/BR-KH-KA-Datasheet-V1.3-20250828.pdf | L4: https://br.fox-ess.com/download/upfiles/BR-KH-Manual-V1.0.0-20250401.pdf | N4: 1 | O4: =O$3*N4*0.9 -> 4.66 | P4: =Table4[[#This Row],[EP5]]*DIMENSIONAMENTO!$K$11 -> 4.66 | Q4: =$Q$3*N4*0.9 -> 9.32 | R4: =Table4[[#This Row],[EP11]]*DIMENSIONAMENTO!$K$11 -> 9.32
B5: 127 | D5: KH10.5 | E5: 10500 | F5: 220 | G5: 47.7 | H5: 68.18 | I5: 15000 | K5: https://br.fox-ess.com/download/upfiles/BR-KH-KA-Datasheet-V1.3-20250828.pdf | L5: https://br.fox-ess.com/download/upfiles/BR-KH-Manual-V1.0.0-20250401.pdf | N5: 2 | O5: =$O$3*N5*0.9 -> 9.32 | P5: =Table4[[#This Row],[EP5]]*DIMENSIONAMENTO!$K$11 -> 9.32 | Q5: =$Q$3*N5*0.9 -> 18.65 | R5: =Table4[[#This Row],[EP11]]*DIMENSIONAMENTO!$K$11 -> 18.65
D6: H1-5.7-US | E6: 5700 | F6: 127/220 | G6: 28.5 | H6: 34.95 | I6: =Products[[#This Row],[Peak Current (60s) '[A']]]*220 -> 7689 | K6: https://br.fox-ess.com/download/upfiles/BR-US-Datasheet-V1.0-20250517.pdf | L6: https://br.fox-ess.com/download/upfiles/PT-US-User%20Manual-v1.2b-20250515.pdf | N6: 3 | O6: =$O$3*N6*0.9 -> 13.99 | P6: =Table4[[#This Row],[EP5]]*DIMENSIONAMENTO!$K$11 -> 13.99 | Q6: =$Q$3*N6*0.9 -> 27.97 | R6: =Table4[[#This Row],[EP11]]*DIMENSIONAMENTO!$K$11 -> 27.97
B7: Rede | D7: H1-7.5-US | E7: 7500 | F7: 127/220 | G7: 37.5 | H7: 46 | I7: =Products[[#This Row],[Peak Current (60s) '[A']]]*220 -> 10120 | K7: https://br.fox-ess.com/download/upfiles/BR-US-Datasheet-V1.0-20250517.pdf | L7: https://br.fox-ess.com/download/upfiles/PT-US-User%20Manual-v1.2b-20250515.pdf | N7: 4 | O7: =$O$3*N7*0.9 -> 18.65 | P7: =Table4[[#This Row],[EP5]]*DIMENSIONAMENTO!$K$11 -> 18.65 | Q7: =$Q$3*N7*0.9 -> 37.30 | R7: =Table4[[#This Row],[EP11]]*DIMENSIONAMENTO!$K$11 -> 37.30
B8: Monofásica (220 V) | D8: H1-11.4-US | E8: 11400 | F8: 127/220 | G8: 57 | H8: 69.95 | I8: =Products[[#This Row],[Peak Current (60s) '[A']]]*220 -> 15389 | K8: https://br.fox-ess.com/download/upfiles/BR-US-Datasheet-V1.0-20250517.pdf | L8: https://br.fox-ess.com/download/upfiles/PT-US-User%20Manual-v1.2b-20250515.pdf | P8: =ROUNDUP(RESULTADO!$C$19/Dados!P4,0) -> 1 | R8: =ROUNDUP(RESULTADO!$C$19/Dados!R4,0) -> 1
B9: Bifásica (127/220 V) | D9: H3-PRO-11.5 | E9: 11500 | F9: 220 | G9: 90.9 | K9: https://br.fox-ess.com/download/upfiles/BR-H3-Pro-Datasheet-Low-Voltage-V1.7-20250828.pdf | L9: https://br.fox-ess.com/download/upfiles/BR-H3-Pro-Manual-V1.0.0.pdf | P9: =ROUNDUP(RESULTADO!$C$19/Dados!P5,0) -> 1 | R9: =ROUNDUP(RESULTADO!$C$19/Dados!R5,0) -> 1
B10: Trifásica (220/380 V) | D10: H3-12.0-E | E10: 12000 | F10: 380 | G10: 22.7 | K10: https://br.fox-ess.com/download/upfiles/BR-H3-Datasheet-V2.7-20250331.pdf | P10: =ROUNDUP(RESULTADO!$C$19/Dados!P6,0) -> 1 | R10: =ROUNDUP(RESULTADO!$C$19/Dados!R6,0) -> 1
B11: Trifásica (127/220 V) | D11: H3-PRO-20.0 | E11: 20000 | F11: 380 | G11: 90.9 | K11: https://br.fox-ess.com/download/upfiles/BR-H3-Pro-Datasheet-Low-Voltage-V1.7-20250828.pdf | L11: https://br.fox-ess.com/download/upfiles/BR-H3-Pro-Manual-V1.0.0.pdf | P11: =ROUNDUP(RESULTADO!$C$19/Dados!P7,0) -> 1 | R11: =ROUNDUP(RESULTADO!$C$19/Dados!R7,0) -> 1
B14: Other Values | D14: Fox ESS name | E14: Especificação Tecnologia | F14: Tensão Nominal | G14: Capacidade Nominal em 25 °C | H14: Peso | I14: Coluna1 | J14: Picture | N14: DoD Màximo
B15: 1000 | D15: EP5 | E15: LFP | F15: 192 | G15: 27 | H15: 50.5±2 | N15: 50%
D16: EP11 | E16: LFP | F16: 384 | G16: 27 | H16: 99±2 | N16: 60%
B17: 1 | D17: HV Junction-Box | E17: - | F17: - | G17: - | H17: - | I17: - | N17: 70%
B18: 2 | D18: AI Link (A-1000) | E18: - | F18: - | G18: - | H18: - | I18: - | N18: 80%
B19: 3 | D19: Quadro Baixa Tensão | N19: 90%
B20: 4 | D20: Fox Hub G2
B22: Tempo de Autonomia
B23: 1
B24: 2
B25: 3 | G25: =DIMENSIONAMENTO!C7 -> Bifásica (127/220 V) | H25: =DIMENSIONAMENTO!G26*1000 -> 8106.00
B26: 4
B27: 5 | G27: Opções de Inversor
B28: 6 | G28: Monofásica | H28: Bifásica | I28: Tri220 | J28: Tri380
B29: 7 | F29: 1 | G29: =E3 -> 5000 | H29: =E6 -> 5700
B30: 8 | F30: 2
B31: 12 | F31: 3
B32: 24 | F32: 4
F33: 1 | G33: =E4 -> 7500 | H33: =E7 -> 7500 | J33: =E10 -> 12000
F34: 2 | G34: =G$33*$F34 -> 15000 | H34: =H$33*$F34 -> 15000 | J34: =J$33*$F34 -> 24000
B35: AVISOS: | F35: 3
B36: NÃO INDICADO | F36: 4
B37: NÃO INDICADO PARA BACKUP/OFF-GRID | F37: 5
B38: PARALELISMO APENAS POSSÍVEL COM O FOX HUB (VERIFIQUE COMPATIBILIDADE) | F38: 1 | G38: =E5 -> 10500 | H38: =E8 -> 11400 | I38: =E9 -> 11500 | J38: =E11 -> 20000
B39: PARALELISMO APENAS POSSÍVEL COM A AI LINK | F39: 2 | G39: =G$38*$F39 -> 21000 | H39: =H$38*$F39 -> 22800 | I39: =I$38*$F39 -> 23000 | J39: =J$38*$F39 -> 40000
B40: PARALELISMO APENAS POSSÍVEL COM A EM BOX | F40: 3 | G40: =$G$38*F40 -> 31500 | H40: =H$38*$F40 -> 34200 | I40: 34500 | J40: 60000
B41: VERIFIQUE AS TENSÕES NOMINAIS DOS APARELHOS E TIPO DE REDE | F41: 4 | G41: 42000 | H41: 45600 | I41: 46000 | J41: 80000
F42: 5 | G42: 52500 | H42: 57000 | I42: 57500 | J42: 100000
F43: 6 | G43: 63000 | H43: 68400 | I43: 69000 | J43: 120000
F44: 7 | G44: 73500 | H44: 79800 | I44: 80500 | J44: 140000
F45: 8 | G45: 84000 | H45: 91200 | I45: 92000 | J45: 160000
F46: 9 | G46: 94500 | H46: 102600 | I46: 103500 | J46: 180000
F47: 10 | G47: 105000 | H47: 114000 | I47: 115000 | J47: 200000
F49: Mínimo viável: | G49: =MIN(IF(G29:G47>=$H$25,G29:G47)) -> 10500 | H49: =MIN(IF(H29:H47>=$H$25,H29:H47)) -> 11400 | I49: =MIN(IF(I29:I47>=$H$25,I29:I47)) -> 11500 | J49: =MIN(IF(J29:J47>=$H$25,J29:J47)) -> 12000
F50: Linha: | G50: =MAX(IF(G29:G47=MIN(IF(G29:G47>=$H$25, G29:G47)), ROW(G29:G47))) -> 38 | H50: =MAX(IF(H29:H47=MIN(IF(H29:H47>=$H$25, H29:H47)), ROW(H29:H47))) -> 38 | I50: =MAX(IF(I29:I47=MIN(IF(I29:I47>=$H$25, I29:I47)), ROW(I29:I47))) -> 38 | J50: =MAX(IF(J29:J47=MIN(IF(J29:J47>=$H$25, J29:J47)), ROW(J29:J47))) -> 33
F51: Modelo: | G51: =_xlfn.IFS(G50<33,D3,G50<38,D4,G50<48,D5) -> KH10.5 | H51: =_xlfn.IFS(H50<33,D6,H50<38,D7,H50<48,D8) -> H1-11.4-US | I51: =D9 -> H3-PRO-11.5 | J51: =_xlfn.IFS(J50<38,D10,J50<48,D11) -> H3-12.0-E
F52: Quantidade: | G52: =ROUNDUP(G49/VLOOKUP(G51,Products[#All],2,0),0) -> 1 | H52: =ROUNDUP(H49/VLOOKUP(H51,Products[#All],2,0),0) -> 1 | I52: =ROUNDUP(I49/VLOOKUP(I51,Products[#All],2,0),0) -> 1 | J52: =ROUNDUP(J49/VLOOKUP(J51,Products[#All],2,0),0) -> 1

Sheet Exemplo 2 (hidden)
B1: Potência do equipamento (W) x Número de horas utilizadas por dia (h) x número de dias de uso por mês / 1000 = consumo em kWh/mês.
G2: SOLAR
B3: Equipamento | C3: Tensão (V) | D3: Potencia (W) | E3: Quantidade | F3: Uso Diario Rede ( horas) | G3: 0 | H3: 1 | I3: 2 | J3: 3 | K3: 4 | L3: 5 | M3: 6 | N3: 7 | O3: 8 | P3: 9 | Q3: 10 | R3: 11 | S3: 12 | T3: 13 | U3: 14 | V3: 15 | W3: 16 | X3: 17 | Y3: 18 | Z3: 19 | AA3: 20 | AB3: 21 | AC3: 22 | AD3: 23 | AE3: Uso Diario Rede ( horas) | AF3: Consumo Dia (Wh) | AG3: Consumo Dia (kWh) | AH3: Consumo mês (Wh) | AI3: Consumo mês (KWh)
B4: Notebook | C4: 220 | D4: 60 | E4: 1 | F4: 4.00 | N4: x | O4: x | P4: x | Q4: x | R4: x | S4: x | T4: x | U4: x | V4: x | W4: x | X4: x | AE4: =+F4/3 -> 1.33 | AF4: =+AE4*D4 -> 80.0 | AG4: =+AF4/1000 -> 0.08 | AH4: =+AE4*D4*30 -> 2,400 | AI4: =+AH4/1000 -> 2.4
B5: Modem / Wifi / Internet | C5: 220 | D5: 20 | E5: 1 | F5: 24.00 | N5: x | O5: x | P5: x | Q5: x | R5: x | S5: x | T5: x | U5: x | V5: x | W5: x | X5: x | AE5: =+F5/3 -> 8.00 | AF5: 160 | AG5: =+AF5/1000 -> 0.16 | AH5: =+AE5*D5*30 -> 4,800 | AI5: =+AH5/1000 -> 4.8
B6: Impressora | C6: 220 | D6: 50 | E6: 1 | F6: =10/60 -> 0.17 | N6: x | O6: x | P6: x | Q6: x | R6: x | S6: x | T6: x | U6: x | V6: x | W6: x | X6: x | AE6: 0.06 | AF6: 2.8 | AG6: 0.00 | AH6: 83 | AI6: 0.08333333333
B7: Luzes | C7: 220 | D7: 15 | E7: 6 | F7: 6.00 | N7: x | O7: x | P7: x | Q7: x | R7: x | S7: x | T7: x | U7: x | V7: x | W7: x | X7: x | AE7: 2.00 | AF7: 30.0 | AG7: 0.03 | AH7: 900 | AI7: 0.9
B8: TV | C8: 220 | D8: 68 | E8: 1 | F8: 4.00 | N8: x | O8: x | P8: x | Q8: x | R8: x | S8: x | T8: x | U8: x | V8: x | W8: x | X8: x | AE8: 1.33 | AF8: 90.7 | AG8: 0.09 | AH8: 2,720 | AI8: 2.72
B9: MicroOndas | C9: 220 | D9: 800 | E9: 1 | F9: =10/60 -> 0.17 | N9: x | O9: x | P9: x | Q9: x | R9: x | S9: x | T9: x | U9: x | V9: x | W9: x | X9: x | AE9: 0.06 | AF9: 44.4 | AG9: 0.04 | AH9: 1,333 | AI9: 1.333333333
B10: Air Fryer | C10: 220 | D10: 1500 | E10: 1 | F10: =10/60 -> 0.17 | N10: x | O10: x | P10: x | Q10: x | R10: x | S10: x | T10: x | U10: x | V10: x | W10: x | X10: x | AE10: 0.06 | AF10: 83.3 | AG10: 0.08 | AH10: 2,500 | AI10: 2.5
B11: Refrigerador | C11: 220 | D11: 250 | E11: 1 | F11: 24.00 | N11: x | O11: x | P11: x | Q11: x | R11: x | S11: x | T11: x | U11: x | V11: x | W11: x | X11: x | AE11: 8.00 | AF11: 2000.0 | AG11: 2.00 | AH11: 60,000 | AI11: 60
B12: Freezer | C12: 220 | D12: 150 | E12: 1 | F12: 24.00 | N12: x | O12: x | P12: x | Q12: x | R12: x | S12: x | T12: x | U12: x | V12: x | W12: x | X12: x | AE12: 8.00 | AF12: 1200.0 | AG12: 1.20 | AH12: 36,000 | AI12: 36
B13: Maquina Lavar | C13: 220 | D13: 1500 | E13: 1 | F13: 2.00 | N13: x | O13: x | P13: x | Q13: x | R13: x | S13: x | T13: x | U13: x | V13: x | W13: x | X13: x | AE13: 0.67 | AF13: 1000.0 | AG13: 1.00 | AH13: 30,000 | AI13: 30
B14: Chuveiro | C14: 220 | D14: 4500 | E14: 1 | F14: =+F10*2 -> 0.33 | N14: x | O14: x | P14: x | Q14: x | R14: x | S14: x | T14: x | U14: x | V14: x | W14: x | X14: x | AE14: 0.11 | AF14: 500.0 | AG14: 0.50 | AH14: 15,000 | AI14: 15
B15: Ar Condicionado 9000 BTU | C15: 220 | D15: 850 | E15: 1 | F15: 4.00 | N15: x | O15: x | P15: x | Q15: x | R15: x | S15: x | T15: x | U15: x | V15: x | W15: x | X15: x | AE15: 1.33 | AF15: 1133.3 | AG15: 1.13 | AH15: 34,000 | AI15: 34
B16: Aspirador De po | C16: 220 | D16: 1000 | E16: 1 | F16: 0.33 | N16: x | O16: x | P16: x | Q16: x | R16: x | S16: x | T16: x | U16: x | V16: x | W16: x | X16: x | AE16: 0.11 | AF16: 111.1 | AG16: 0.11 | AH16: 3,333 | AI16: 3.333333333
B17: Secador De cabelo | C17: 220 | D17: 1400 | E17: 1 | F17: =+F16 -> 0.33 | N17: x | O17: x | P17: x | Q17: x | R17: x | S17: x | T17: x | U17: x | V17: x | W17: x | X17: x | AE17: 0.11 | AF17: 155.6 | AG17: 0.16 | AH17: 4,667 | AI17: 4.666666667
AG19: =SUM(AG4:AG17) -> 6.59 | AI19: =SUM(AI4:AI17) -> 197.7366667 | AK19: 02 baterias 5KW
AG20: Total Diario (Kwh) | AK20: 01 Baterias 10 KW
